bitfinex/quotes_SOLUSD_20250414
["timestamp","ask_amount","ask_price","bid_price","bid_amount"]
[1744606294331,82.9,134.09,134.0,24.72944511]
[1744606294332,23.10154511,134.05,134.0,24.72944511]
[1744606294621,17.13344511,134.07,134.02,17.13344511]
[1744606295202,23.09994511,134.08,134.03,17.13344511]
[1744606297828,17.13344511,134.04,134.0,1.6261]
[1744606298136,23.10254511,134.03,133.99,0.063]
[1744606298500,17.13344511,134.02,133.99,0.063]
[1744606298923,17.13344511,134.01,133.99,0.063]
[1744606299117,5.9691,134.03,133.99,0.063]
[1744606299118,17.13344511,134.02,133.99,0.063]
[1744606300030,23.10274511,134.02,133.99,0.063]
[1744606300212,23.10174511,134.04,133.99,17.19644511]
[1744606300421,23.10144511,134.05,134.0,17.13344511]
[1744606300731,7.16,134.06,134.01,17.13344511]
[1744606300732,23.10104511,134.06,134.01,17.13344511]
[1744606301025,17.13344511,134.09,134.04,17.13344511]
[1744606301235,17.13344511,134.08,134.04,17.13344511]
[1744606302024,23.10034511,134.08,134.03,25.20214511]
[1744606302935,23.10034511,134.08,134.03,31.17084511]
[1744606303822,23.10034511,134.08,134.03,8.0687]
[1744606304031,17.13344511,134.07,134.03,25.20214511]
[1744606304331,17.13344511,134.06,134.03,8.0687]
[1744606304542,17.13344511,134.05,134.03,1.6542]
[1744606304831,17.13344511,134.04,133.99,1.7172]
[1744606305009,17.13344511,134.01,133.99,1.7172]
[1744606306328,5.9701,134.0,133.99,0.063]
[1744606306527,23.10354511,134.0,133.99,0.063]
[1744606307107,17.13344511,134.02,133.99,0.063]
[1744606307725,17.13344511,134.01,133.99,0.063]
[1744606309337,23.10314511,134.01,133.99,0.063]
[1744606309802,5.9694,134.02,133.99,0.063]
[1744606310005,17.13344511,134.01,133.99,0.063]
[1744606310206,23.10284511,134.02,133.99,0.063]
[1744606310427,23.10234511,134.03,133.99,0.063]
[1744606310739,23.10184511,134.04,133.99,17.19644511]
[1744606311032,23.10184511,134.04,133.99,23.16684511]
[1744606311538,17.13344511,134.05,134.0,17.13344511]
[1744606312235,17.13344511,134.06,134.02,17.13344511]
[1744606312434,17.13344511,134.06,134.01,18.64014511]
[1744606312942,17.13344511,134.05,134.01,1.5067]
[1744606313234,23.10144511,134.05,134.01,1.5067]
[1744606313916,17.13344511,134.04,134.01,1.5067]
[1744606315049,23.10194511,134.04,134.01,1.5067]
[1744606315341,23.10194511,134.04,133.99,0.063]
[1744606315342,17.13344511,134.02,133.99,0.063]
[1744606317241,23.10284511,134.02,133.99,0.063]
[1744606317413,17.13344511,134.01,133.99,0.063]
[1744606318240,5.9686,134.04,133.99,17.19644511]
[1744606318445,17.13344511,134.02,133.99,0.063]
[1744606319221,23.10274511,134.02,133.99,0.063]
[1744606320815,17.13344511,134.01,133.99,0.063]
[1744606321236,23.10354511,134.0,133.99,0.063]
[1744606321446,17.13344511,134.0,133.99,0.063]
[1744606321622,17.13344511,134.02,133.99,0.063]
[1744606321821,17.13344511,134.05,134.0,17.13344511]
[1744606322439,17.13344511,134.04,134.0,17.13344511]
[1744606322829,23.10184511,134.04,134.0,17.13344511]
[1744606323033,17.13344511,134.03,133.99,0.063]
[1744606323229,17.13344511,134.04,134.0,17.13344511]
[1744606323446,5.9681,134.05,134.0,17.13344511]
[1744606323631,17.13344511,134.07,134.02,17.13344511]
[1744606323834,17.13344511,134.08,134.03,17.13344511]
[1744606324034,17.13344511,134.08,134.03,23.31004511]
[1744606324835,23.09994511,134.08,134.03,23.31004511]
[1744606325236,23.09994511,134.08,134.03,29.27884511]
[1744606325434,0.03,134.1,134.04,17.13344511]
[1744606325638,0.03,134.1,134.06,17.13344511]
[1744606326152,23.12914511,134.1,134.06,17.13344511]
[1744606326657,17.13344511,134.09,134.04,17.13344511]
[1744606326841,17.13344511,134.09,134.04,23.10174511]
[1744606326842,23.09964511,134.09,134.04,23.10174511]
[1744606327446,17.13344511,134.08,134.04,23.10174511]
[1744606329063,0.03,134.1,134.06,17.13344511]
[1744606329374,0.03,134.1,134.05,17.13344511]
[1744606329560,0.03,134.1,134.09,17.13344511]
[1744606330653,0.03,134.1,134.09,23.09954511]
[1744606332157,0.03,134.1,134.09,29.38814511]
[1744606332358,0.03,134.12,134.1,18.79181043]
[1744606332564,0.03,134.12,134.11,17.13344511]
[1744606334650,0.03,134.12,134.09,32.05824511]
[1744606334854,17.16344511,134.12,134.09,7.8648]
[1744606336761,23.12824511,134.12,134.09,7.8648]
[1744606337135,17.13344511,134.11,134.07,17.13344511]
[1744606337339,23.12824511,134.12,134.07,17.13344511]
[1744606337756,17.13344511,134.11,134.07,17.13344511]
[1744606338257,17.13344511,134.09,134.05,1.5762]
[1744606338444,17.13344511,134.06,134.02,15.0488]
[1744606338653,17.13344511,134.04,134.02,1.6014]
[1744606339034,17.13344511,134.04,134.0,17.13344511]
[1744606339236,17.13344511,134.06,134.0,5.97]
[1744606339465,17.13344511,134.07,134.03,17.13344511]
[1744606339649,17.13344511,134.09,134.04,17.13344511]
[1744606339964,23.09884511,134.11,134.06,17.13344511]
[1744606340463,17.13344511,134.11,134.07,17.13344511]
[1744606341165,17.16344511,134.12,134.08,17.13344511]
[1744606341465,0.03,134.12,134.1,17.13344511]
[1744606341660,17.16344511,134.12,134.08,17.13344511]
[1744606342362,23.12824511,134.12,134.08,17.13344511]
[1744606342560,17.13344511,134.11,134.07,17.13344511]
[1744606342866,17.13344511,134.11,134.06,23.10074511]
[1744606343163,0.03,134.12,134.08,17.13344511]
[1744606343459,0.03,134.12,134.09,17.13344511]
[1744606343669,0.03,134.12,134.08,17.13344511]
[1744606344052,0.03,134.12,134.08,23.09994511]
[1744606344757,17.16344511,134.12,134.08,17.13344511]
[1744606344953,18.64964886,134.08,133.99,0.063]
[1744606345261,17.13344511,134.04,133.99,0.063]
[1744606345861,17.13344511,134.05,133.99,0.063]
[1744606346054,17.13344511,134.05,133.99,6.0332]
[1744606346366,23.10144511,134.05,133.99,6.0332]
[1744606346759,23.10144511,134.05,134.0,17.13344511]
[1744606349271,5.968,134.05,134.0,23.10354511]
[1744606349571,23.10144511,134.05,134.0,23.10354511]
[1744606349867,23.10144511,134.05,134.0,17.13344511]
[1744606350772,23.10144511,134.05,133.99,0.063]
[1744606351067,23.10144511,134.05,134.0,17.13344511]
[1744606351288,17.13344511,134.04,133.99,17.19644511]
[1744606351566,17.13344511,134.03,133.99,0.063]
[1744606351967,5.968,134.05,133.99,0.063]
[1744606351968,23.10264511,134.02,133.99,0.063]
[1744606354769,17.13344511,134.04,133.99,17.19644511]
[1744606355145,17.13344511,134.03,133.99,0.063]
[1744606356272,23.10234511,134.03,133.99,0.063]
[1744606356647,17.13344511,134.02,133.99,0.063]
[1744606358372,23.10274511,134.02,133.99,0.063]
[1744606360671,17.13344511,134.02,133.99,0.063]
[1744606361578,17.13344511,134.01,133.99,0.063]
[1744606361763,17.13344511,134.0,133.99,0.063]
[1744606362775,60.49963908,134.0,133.99,0.063]
[1744606363078,60.92612379,134.0,133.99,0.0001]
[1744606363380,48.11936051,134.0,133.99,0.0001]
[1744606363679,131.01936051,134.0,133.99,0.0001]
[1744606364251,48.11936051,134.0,133.99,0.0001]
[1744606364451,18.64964886,133.99,133.98,0.063]
[1744606364752,29.37971233,133.99,133.98,0.063]
[1744606364973,35.77669704,133.99,133.98,0.063]
[1744606365290,42.213967,133.99,133.98,0.063]
[1744606367580,125.113967,133.99,133.98,0.063]
[1744606369178,5.9705,133.99,133.98,0.063]
[1744606369402,23.13783343,133.99,133.98,0.063]
[1744606370384,41.78748229,133.99,133.98,0.063]
[1744606371183,42.213967,133.99,133.98,0.063]
[1744606371360,125.113967,133.99,133.98,0.063]
[1744606372671,126.742967,133.99,133.98,0.0001]
[1744606373068,18.64964886,133.98,133.97,0.063]
[1744606373384,52.98431572,133.98,133.97,0.063]
[1744606373885,35.81698229,133.98,133.97,0.063]
[1744606374794,41.78798229,133.98,133.97,0.063]
[1744606374982,59.38180043,133.98,133.97,0.0001]
[1744606376186,0.42648471,133.97,133.96,0.0001]
[1744606376390,44.79181043,133.96,133.94,0.063]
[1744606376575,142.88431572,133.95,133.94,0.063]
[1744606377092,124.23466686,133.95,133.94,0.063]
[1744606377298,17.16733343,133.95,133.94,0.063]
[1744606377469,17.16733343,133.96,133.94,0.063]
[1744606377790,17.16733343,133.95,133.94,0.063]
[1744606380998,89.9,133.99,133.94,0.063]
[1744606381168,17.16733343,133.98,133.94,0.063]
[1744606381368,17.16733343,133.96,133.94,0.063]
[1744606382794,17.16733343,133.97,133.94,0.063]
[1744606382995,17.16733343,133.98,133.94,0.063]
[1744606383195,17.16733343,134.0,133.95,17.16733343]
[1744606383695,17.16733343,133.99,133.94,17.23033343]
[1744606384079,17.16733343,134.0,133.95,17.16733343]
[1744606384406,17.16733343,134.01,133.96,17.16733343]
[1744606384591,17.16733343,134.01,133.97,5.9714]
[1744606384773,17.16733343,134.01,133.97,23.13873343]
[1744606385178,17.16733343,134.01,133.97,5.9714]
[1744606385371,5.9693,134.02,133.97,5.9714]
[1744606385579,17.16733343,134.01,133.96,23.13903343]
[1744606385793,17.16733343,134.0,133.96,23.13903343]
[1744606385976,17.16733343,133.98,133.94,17.23033343]
[1744606386180,17.16733343,133.97,133.94,0.063]
[1744606386377,17.16733343,133.98,133.94,6.0358]
[1744606386589,17.16733343,133.99,133.94,23.20313343]
[1744606387183,10.72437008,133.99,133.94,16.76017008]
[1744606388502,10.72437008,133.98,133.94,0.063]
[1744606388674,10.72437008,133.97,133.94,0.063]
[1744606388870,10.72437008,133.95,133.94,0.063]
[1744606389187,40.09838902,133.95,133.94,0.063]
[1744606389673,46.07068902,133.95,133.94,0.063]
[1744606394702,46.49717373,133.95,133.94,0.063]
[1744606395481,5.9723,133.95,133.94,0.063]
[1744606395795,16.69667008,133.95,133.94,0.063]
[1744606396989,10.72437008,133.95,133.94,0.063]
[1744606397298,10.72437008,133.98,133.94,0.063]
[1744606397496,5.9688,134.03,133.97,10.72437008]
[1744606397699,16.69317008,134.03,133.98,10.72437008]
[1744606398079,10.72437008,134.01,133.97,10.72437008]
[1744606398281,10.72437008,134.01,133.96,10.72437008]
[1744606398481,10.78737008,134.02,133.97,10.72437008]
[1744606398683,0.063,134.02,133.98,10.72437008]
[1744606398900,10.78737008,134.02,133.97,10.72437008]
[1744606399099,10.72437008,134.0,133.95,18.28787008]
[1744606399870,10.72437008,134.0,133.96,10.72437008]
[1744606400807,16.69447008,134.0,133.96,10.72437008]
[1744606401404,16.69447008,134.0,133.95,18.28787008]
[1744606401597,10.72437008,133.99,133.95,1.5913]
[1744606402102,16.69497008,133.99,133.95,1.5913]
[1744606402497,16.69467008,134.0,133.95,18.28797008]
[1744606403099,10.78737008,134.02,133.97,10.72437008]
[1744606403299,0.063,134.02,133.99,10.72437008]
[1744606403502,0.063,134.02,133.98,10.72437008]
[1744606404219,16.75667008,134.02,133.97,16.69567008]
[1744606404381,10.72437008,134.01,133.96,16.69607008]
[1744606404584,10.72437008,134.0,133.96,16.69607008]
[1744606404901,10.72437008,134.01,133.96,16.69607008]
[1744606405106,10.72437008,134.0,133.95,12.31567008]
[1744606405615,10.72437008,134.01,133.97,10.72437008]
[1744606405803,16.75667008,134.02,133.97,10.72437008]
[1744606406299,10.72437008,134.0,133.95,12.31567008]
[1744606406886,10.72437008,134.01,133.96,10.72437008]
[1744606407396,10.78737008,134.02,133.97,10.72437008]
[1744606408501,16.75677008,134.02,133.97,16.69577008]
[1744606409914,0.063,134.02,133.99,10.72437008]
[1744606410295,0.063,134.02,133.98,10.72437008]
[1744606411214,0.063,134.02,133.96,0.42648471]
[1744606411406,10.78737008,134.02,133.97,10.72437008]
[1744606411616,10.78737008,134.02,133.98,10.72437008]
[1744606411997,10.78737008,134.02,133.97,10.72437008]
[1744606412611,5.9697,134.01,133.97,10.72437008]
[1744606412814,16.75677008,134.02,133.97,16.69577008]
[1744606413117,16.75677008,134.02,133.97,10.72437008]
[1744606413298,16.75677008,134.02,133.98,10.72437008]
[1744606414498,16.75677008,134.02,133.97,16.69577008]
[1744606415724,10.72437008,134.01,133.97,10.72437008]
[1744606415924,10.72437008,134.01,133.96,99.29617008]
[1744606416106,10.72437008,134.01,133.97,10.72437008]
[1744606416420,10.72437008,133.98,133.94,0.063]
[1744606416624,10.72437008,133.96,133.94,0.063]
[1744606416927,10.72437008,134.0,133.95,10.72437008]
[1744606417101,10.72437008,133.99,133.95,10.72437008]
[1744606418027,16.69487008,133.99,133.94,10.78737008]
[1744606418322,10.72437008,133.98,133.94,10.78737008]
[1744606419216,16.69487008,133.99,133.95,10.72437008]
[1744606420727,16.69487008,133.99,133.94,10.78737008]
[1744606421027,10.72437008,133.99,133.95,10.72437008]
[1744606421211,16.69457008,134.0,133.96,10.72437008]
[1744606422032,16.69457008,134.0,133.95,10.72437008]
[1744606422235,10.72437008,133.99,133.95,10.72437008]
[1744606422822,10.72437008,133.98,133.94,0.063]
[1744606423212,10.72437008,133.97,133.94,0.063]
[1744606423723,20.8939,134.01,133.94,10.78737008]
[1744606423915,10.72437008,133.99,133.94,10.78737008]
[1744606424937,16.69477008,134.0,133.95,10.72437008]
[1744606427340,10.72437008,133.99,133.94,16.76007008]
[1744606427839,10.72437008,133.99,133.95,10.72437008]
[1744606429037,16.69487008,133.99,133.94,16.76007008]
[1744606429251,10.72437008,133.97,133.94,0.063]
[1744606430525,16.69597008,133.97,133.94,0.063]
[1744606433032,10.72437008,133.96,133.94,0.063]
[1744606433431,16.69597008,133.97,133.94,0.063]
[1744606434936,0.063,134.02,133.96,16.69587008]
[1744606435239,6.92319795,134.02,133.97,6.86019795]
[1744606435945,5.9697,134.01,133.97,6.86019795]
[1744606436446,5.9697,134.01,133.97,12.83159795]
[1744606437051,12.82989795,134.01,133.97,12.83159795]
[1744606437346,16.68957607,134.01,133.97,16.69127607]
[1744606438041,16.68957607,134.01,133.97,10.71987607]
[1744606438647,16.68957607,134.01,133.96,16.69167607]
[1744606439248,5.9697,134.01,133.95,7.9067]
[1744606439424,10.71987607,133.98,133.94,0.063]
[1744606439629,10.71987607,133.97,133.94,0.063]
[1744606441147,16.69097607,133.98,133.94,0.063]
[1744606441648,10.71987607,133.98,133.94,10.78287607]
[1744606442448,10.71987607,133.98,133.94,16.75557607]
[1744606442748,10.71987607,133.98,133.94,10.78287607]
[1744606443634,16.69087607,133.98,133.94,10.78287607]
[1744606444452,16.69087607,133.98,133.94,0.063]
[1744606445253,10.71987607,133.98,133.94,16.75557607]
[1744606445848,0.063,134.02,133.98,1.5422]
[1744606446034,0.063,134.02,134.0,10.71987607]
[1744606446437,0.063,134.02,133.99,10.71987607]
[1744606446951,0.063,134.02,134.0,10.71987607]
[1744606447539,0.063,134.02,134.0,16.68997607]
[1744606448557,0.063,134.02,134.0,10.71987607]
[1744606449045,0.063,134.02,134.0,16.68997607]
[1744606449253,0.063,134.02,134.01,10.71987607]
[1744606449551,0.063,134.02,134.01,16.68957607]
[1744606449945,0.063,134.02,134.01,5.9697]
[1744606450150,0.063,134.02,134.01,16.68957607]
[1744606452261,0.063,134.02,133.99,10.71987607]
[1744606452442,0.063,134.02,133.98,18.69687607]
[1744606452645,0.063,134.02,133.99,10.71987607]
[1744606452839,0.063,134.02,134.01,10.71987607]
[1744606453851,0.03,134.05,134.04,26.0]
[1744606454052,0.03,134.05,134.04,55.84323685]
[1744606454442,0.03,134.05,134.04,44.69687607]
[1744606454845,0.03,134.05,134.04,50.66517607]
[1744606455845,0.03,134.05,134.04,80.46118571]
[1744606456444,0.063,134.06,134.04,80.46118571]
[1744606456445,0.063,134.06,134.05,0.42648471]
[1744606456645,0.063,134.06,134.05,28.84623685]
[1744606457157,0.063,134.06,134.05,34.81413685]
[1744606458578,0.063,134.08,134.06,18.64964886]
[1744606458741,0.063,134.08,134.07,37.52512493]
[1744606458943,0.0001,134.08,134.07,120.55160964]
[1744606461466,0.0001,134.08,134.07,126.51860964]
[1744606461770,0.0001,134.1,134.09,44.64964886]
[1744606462064,0.0001,134.1,134.09,148.689401]
[1744606463261,0.0001,134.1,134.09,149.11588571]
[1744606463569,0.0001,134.1,134.09,155.08198571]
[1744606466374,0.0001,134.1,134.09,136.14801371]
[1744606466539,0.0001,134.1,134.07,93.31987607]
[1744606466742,0.0001,134.1,134.07,82.6]
[1744606467166,0.0001,134.1,134.07,93.31987607]
[1744606467549,0.0001,134.1,134.07,99.28667607]
[1744606468146,10.71987607,134.09,134.04,97.1821]
[1744606468370,10.71987607,134.07,134.02,16.68897607]
[1744606468755,10.71987607,134.07,134.02,5.9691]
[1744606469070,10.71987607,134.07,134.02,16.68897607]
[1744606469746,16.68667607,134.08,134.03,10.71987607]
[1744606470458,10.71987607,134.08,134.03,10.71987607]
[1744606470765,0.0001,134.1,134.06,10.71987607]
[1744606471367,0.0001,134.1,134.07,10.71987607]
[1744606472049,10.71997607,134.1,134.06,10.71987607]
[1744606472255,10.71987607,134.09,134.04,88.5683]
[1744606472464,10.71987607,134.09,134.04,99.28817607]
[1744606472663,10.71987607,134.09,134.05,10.71987607]
[1744606472974,10.71997607,134.1,134.06,10.71987607]
[1744606473342,0.0001,134.1,134.06,10.71987607]
[1744606473680,0.0001,134.1,134.06,16.68707607]
[1744606474283,10.71997607,134.1,134.05,16.68757607]
[1744606474457,10.71987607,134.09,134.04,93.31987607]
[1744606474774,10.71987607,134.08,134.03,16.68847607]
[1744606475769,10.71987607,134.07,134.02,93.31987607]
[1744606475976,10.71987607,134.05,134.0,10.71987607]
[1744606476474,10.71987607,134.05,134.0,16.68977607]
[1744606476649,10.71987607,134.05,134.01,10.71987607]
[1744606476856,18.58997607,134.07,134.02,10.71987607]
[1744606477249,1.6639,134.07,134.03,10.71987607]
[1744606477650,10.71987607,134.09,134.04,16.68807607]
[1744606477884,16.92617607,134.1,134.06,10.71987607]
[1744606478169,16.92617607,134.1,134.05,10.71987607]
[1744606478952,22.89187607,134.1,134.05,10.71987607]
[1744606480772,10.71987607,134.07,134.01,88.5695]
[1744606480960,10.71987607,134.06,134.01,99.28937607]
[1744606481151,10.71987607,134.06,134.02,10.71987607]
[1744606481576,10.71987607,134.07,134.02,10.71987607]
[1744606482278,10.71987607,134.06,134.01,93.31987607]
[1744606482477,10.71987607,134.06,134.01,99.28937607]
[1744606483474,10.71987607,134.06,134.01,10.71987607]
[1744606483656,10.71987607,134.06,134.01,16.68947607]
[1744606484257,10.71987607,134.07,134.02,10.71987607]
[1744606485480,10.71987607,134.07,134.03,10.71987607]
[1744606485857,16.68697607,134.07,134.02,10.71987607]
[1744606486881,10.71987607,134.06,134.01,10.71987607]
[1744606488481,16.68737607,134.06,134.01,16.68947607]
[1744606488701,10.71987607,134.07,134.02,10.71987607]
[1744606489683,16.68697607,134.07,134.02,10.71987607]
[1744606490484,16.68697607,134.07,134.01,5.9696]
[1744606490485,5.9664,134.09,134.04,5.9683]
[1744606490782,10.71987607,134.08,134.03,16.68847607]
[1744606491674,10.21987607,134.08,134.03,16.68847607]
[1744606491986,6.2063,134.1,134.05,10.71987607]
[1744606492169,16.92617607,134.1,134.05,10.71987607]
[1744606492372,10.71987607,134.08,134.03,16.68847607]
[1744606493575,16.68657607,134.08,134.03,10.71987607]
[1744606493776,10.71987607,134.07,134.02,10.71987607]
[1744606494181,10.71987607,134.06,134.02,10.71987607]
[1744606494882,16.68757607,134.06,134.02,10.71987607]
[1744606495088,10.71987607,134.05,134.01,10.71987607]
[1744606495277,10.71987607,134.05,134.0,10.71987607]
[1744606495482,10.71987607,134.05,134.01,10.71987607]
[1744606496387,10.71987607,134.05,134.01,16.68947607]
[1744606496687,16.68777607,134.05,134.01,10.71987607]
[1744606497370,10.71987607,134.05,134.01,16.68937607]
[1744606497572,16.68777607,134.05,134.01,10.71987607]
[1744606498187,10.71987607,134.05,134.01,16.68947607]
[1744606498594,16.68777607,134.05,134.01,10.71987607]
[1744606499288,5.9679,134.05,134.01,10.71987607]
[1744606499600,16.68747607,134.06,134.01,16.68947607]
[1744606499774,10.71987607,134.04,133.99,82.663]
[1744606499980,12.25497607,134.05,134.0,10.71987607]
[1744606500177,12.25497607,134.05,133.99,6.0335]
[1744606500178,1.5351,134.05,134.01,10.71987607]
[1744606500376,1.5351,134.05,134.02,10.71987607]
[1744606500593,10.71987607,134.08,134.03,10.71987607]
[1744606500892,16.68657607,134.08,134.03,16.68827607]
[1744606501083,10.71987607,134.08,134.03,16.68827607]
[1744606502274,16.68657607,134.08,134.03,16.68827607]
[1744606503095,16.68657607,134.08,134.03,10.71987607]
[1744606503393,10.71987607,134.07,134.02,10.71987607]
[1744606503581,10.71987607,134.07,134.02,16.68897607]
[1744606503783,16.68657607,134.08,134.03,10.71987607]
[1744606504493,31.84137607,134.1,134.03,10.71987607]
[1744606504494,0.0001,134.1,134.04,10.71987607]
[1744606504677,0.0001,134.1,134.07,10.71987607]
[1744606504991,0.0001,134.1,134.04,6.11046157]
[1744606505196,0.0001,134.1,134.05,10.71987607]
[1744606505374,0.0001,134.1,134.06,10.71987607]
[1744606505571,0.0001,134.1,134.08,10.71987607]
[1744606505968,0.0001,134.1,134.07,10.71987607]
[1744606506402,0.0001,134.1,134.09,10.71987607]
[1744606507095,0.0001,134.1,134.09,16.68597607]
[1744606507978,0.0001,134.1,134.06,0.28432314]
[1744606507979,0.0001,134.1,134.08,5.9665]
[1744606508182,0.0001,134.1,134.09,10.71987607]
[1744606509097,0.0001,134.1,134.09,16.68597607]
[1744606513399,0.0001,134.1,134.09,10.71987607]
[1744606513594,0.0001,134.1,134.09,16.68597607]
[1744606515102,0.0001,134.1,134.08,16.68627607]
[1744606515396,0.0001,134.1,134.08,10.71987607]
[1744606516087,0.0001,134.1,134.07,10.71987607]
[1744606516388,0.0001,134.1,134.07,16.68647607]
[1744606516589,0.0001,134.1,134.08,10.71987607]
[1744606518885,0.0001,134.1,134.08,16.68627607]
[1744606523399,0.0001,134.1,134.09,10.71987607]
[1744606525709,0.0001,134.1,134.09,16.68597607]
[1744606526409,0.0001,134.1,134.09,110.14801371]
[1744606526580,0.0001,134.1,134.09,135.14528571]
[1744606526787,0.03,134.12,134.11,44.64964886]
[1744606527024,0.0001,134.12,134.11,137.96952493]
[1744606527807,0.0001,134.12,134.11,143.93472493]
[1744606528285,0.0001,134.12,134.11,125.71156078]
[1744606529005,0.0001,134.12,134.11,144.36120964]
[1744606529904,0.063,134.14,134.13,6.39078471]
[1744606530206,0.063,134.14,134.13,34.81053685]
[1744606530507,0.063,134.14,134.13,5.9643]
[1744606530694,0.063,134.14,134.13,16.68417607]
[1744606533401,0.063,134.14,134.13,10.71987607]
[1744606533607,0.063,134.14,134.11,26.0]
[1744606533823,0.063,134.14,134.12,10.71987607]
[1744606535112,0.063,134.14,134.11,16.68497607]
[1744606535504,0.063,134.14,134.11,10.71987607]
[1744606536096,0.063,134.14,134.11,16.68497607]
[1744606536499,0.063,134.14,134.12,10.71987607]
[1744606537222,0.063,134.14,134.13,10.71987607]
[1744606539018,0.063,134.14,134.12,16.68427607]
[1744606541192,0.063,134.14,134.12,5.9644]
[1744606541394,0.063,134.14,134.12,16.68427607]
[1744606545303,0.063,134.14,134.12,5.9644]
[1744606545618,0.063,134.14,134.12,16.68427607]
[1744606547719,0.063,134.14,134.12,5.9644]
[1744606547925,0.063,134.14,134.11,82.6]
[1744606548229,10.78287607,134.14,134.11,82.6]
[1744606549026,12.25627607,134.12,134.05,82.6]
[1744606549213,10.71987607,134.09,134.05,93.31987607]
[1744606550224,16.68607607,134.09,134.05,93.31987607]
[1744606551027,16.68607607,134.09,134.05,82.6]
[1744606551321,10.71987607,134.08,134.05,82.6]
[1744606551822,10.71987607,134.07,134.02,10.78287607]
[1744606552006,10.71987607,134.06,134.02,10.78287607]
[1744606552198,16.68707607,134.07,134.02,10.78287607]
[1744606552603,16.68707607,134.07,134.02,16.75207607]
[1744606552906,16.68707607,134.07,134.03,10.71987607]
[1744606555031,10.71987607,134.07,134.03,16.68857607]
[1744606555617,16.68647607,134.08,134.03,16.68857607]
[1744606557431,10.71987607,134.07,134.03,16.68857607]
[1744606558111,10.71987607,134.07,134.03,10.71987607]
[1744606558734,10.71987607,134.06,134.02,0.063]
[1744606559526,7.496,134.07,134.03,10.71987607]
[1744606559732,10.71987607,134.09,134.05,10.71987607]
[1744606560144,10.71987607,134.09,134.04,10.71987607]
[1744606560329,10.71987607,134.08,134.04,10.71987607]
[1744606560508,10.71987607,134.08,134.03,10.71987607]
[1744606560714,10.71987607,134.07,134.02,93.38287607]
[1744606560914,10.71987607,134.07,134.02,10.78287607]
[1744606561437,16.68727607,134.07,134.02,10.78287607]
[1744606562325,16.68727607,134.07,134.02,0.063]
[1744606562326,10.71987607,134.05,134.02,0.063]
[1744606563531,5.9683,134.04,134.02,0.063]
[1744606564340,16.68797607,134.05,134.02,0.063]
[1744606566140,10.71987607,134.04,134.02,0.063]
[1744606567143,1.5286,134.05,134.02,0.063]
[1744606567350,7.4952,134.08,134.04,10.71987607]
[1744606567644,1.5286,134.08,134.05,10.71987607]
[1744606568940,7.4952,134.08,134.04,10.71987607]
[1744606569236,18.21507607,134.08,134.04,10.71987607]
[1744606569442,18.21507607,134.08,134.03,16.68847607]
[1744606570456,18.21507607,134.08,134.04,16.68817607]
[1744606570742,12.24847607,134.08,134.04,16.68817607]
[1744606571241,1.5286,134.08,134.04,16.68817607]
[1744606571436,23.12087607,134.1,134.05,10.71987607]
[1744606572836,23.12087607,134.1,134.05,16.68767607]
[1744606573035,25.19387607,134.11,134.06,10.71987607]
[1744606573238,14.474,134.11,134.06,10.71987607]
[1744606573419,14.474,134.11,134.07,10.71987607]
[1744606573823,7.494,134.11,134.07,10.71987607]
[1744606574047,1.5286,134.11,134.07,10.71987607]
[1744606574449,12.24847607,134.11,134.07,16.68677607]
[1744606574854,8.0269,134.14,134.08,10.71987607]
[1744606575055,10.78287607,134.14,134.08,82.6]
[1744606575223,10.78287607,134.14,134.03,10.71987607]
[1744606575224,10.71987607,134.09,134.03,10.71987607]
[1744606575552,10.71987607,134.08,134.03,10.71987607]
[1744606576449,10.71987607,134.08,134.03,16.68867607]
[1744606577132,10.71987607,134.09,134.04,10.71987607]
[1744606577324,10.71987607,134.1,134.05,10.71987607]
[1744606577953,16.68517607,134.11,134.06,10.71987607]
[1744606578150,10.71987607,134.1,134.05,10.71987607]
[1744606578451,10.71987607,134.1,134.06,5.9674]
[1744606578654,16.68547607,134.1,134.05,16.68757607]
[1744606579035,10.71987607,134.1,134.05,16.68757607]
[1744606579238,10.71987607,134.11,134.06,10.71987607]
[1744606580152,16.68517607,134.11,134.06,10.71987607]
[1744606580453,14.4735,134.12,134.07,16.68687607]
[1744606580751,19.22847607,134.12,134.07,16.68687607]
[1744606582432,17.69987607,134.12,134.07,16.68687607]
[1744606582754,16.68417607,134.13,134.08,10.71987607]